[Event "Titled Tuesday Blitz July 11 Early 2023"]
[White "Balint, Vilmos"]
[Black "Berezin, Viktor"]
[WhiteFideId "718050"]
[BlackFideId "14107872"]
[WhiteElo "2277"]
[BlackElo "2534"]
[Result "0-1"]
[Round "3"]
[TimeControl "180+2"]
[Date "2023.07.11"]
[WhiteClock "0:02:49"]
[BlackClock "0:01:44"]
[Board "144"]

1. d4 {[%clk 0:02:59]}  Nf6 {[%clk 0:02:59]} 2. Nc3 {[%clk 0:02:58]}  g6 {[%clk 0:02:59]} 3. e4 {[%clk 0:02:59]}  d6 {[%clk 0:03:00]} 4. h3 {[%clk 0:02:57]}  Bg7 {[%clk 0:03:00]} 5. Nf3 {[%clk 0:02:58]}  O-O {[%clk 0:03:00]} 6. Be3 {[%clk 0:02:58]}  c6 {[%clk 0:03:00]} 7. Be2 {[%clk 0:02:58]}  b5 {[%clk 0:02:58]} 8. O-O {[%clk 0:02:59]}  Nbd7 {[%clk 0:02:59]} 9. a3 {[%clk 0:02:59]}  e5 {[%clk 0:02:59]} 10. dxe5 {[%clk 0:02:59]}  dxe5 {[%clk 0:02:59]} 11. Qd6 {[%clk 0:02:58]}  Bb7 {[%clk 0:02:49]} 12. Nxe5 {[%clk 0:02:53]}  Nxe5 {[%clk 0:01:57]} 13. Qxe5 {[%clk 0:02:53]}  Re8 {[%clk 0:01:58]} 14. Qg3 {[%clk 0:02:52]}  Nxe4 {[%clk 0:01:51]} 15. Nxe4 {[%clk 0:02:53]}  Rxe4 {[%clk 0:01:52]} 16. c3 {[%clk 0:02:51]}  Be5 {[%clk 0:01:47]} 17. Qg5 {[%clk 0:02:52]}  Qxg5 {[%clk 0:01:43]} 18. Bxg5 {[%clk 0:02:49]}  Rxe2 {[%clk 0:01:44]} 0-1


[Site "https://www.chess.com"]

[Event "Titled Tuesday Blitz July 11 Early 2023"]
[White "Onslow, Alfie"]
[Black "Dushyant Sharma"]
[WhiteFideId "436976"]
[BlackFideId "25065130"]
[WhiteElo "2253"]
[BlackElo "2527"]
[Result "1-0"]
[Round "3"]
[TimeControl "180+2"]
[Date "2023.07.11"]
[WhiteClock "0:00:04"]
[BlackClock "0:00:10"]
[Board "146"]

1. e4 {[%clk 0:03:00]}  d5 {[%clk 0:02:59]} 2. exd5 {[%clk 0:02:57]}  Nf6 {[%clk 0:03:00]} 3. d4 {[%clk 0:02:55]}  Bg4 {[%clk 0:03:00]} 4. Bb5+ {[%clk 0:02:46]}  c6 {[%clk 0:02:59]} 5. dxc6 {[%clk 0:02:44]}  Nxc6 {[%clk 0:03:00]} 6. f3 {[%clk 0:02:40]}  Bf5 {[%clk 0:03:00]} 7. c3 {[%clk 0:02:39]}  e6 {[%clk 0:03:00]} 8. Ne2 {[%clk 0:02:39]}  Be7 {[%clk 0:02:59]} 9. O-O {[%clk 0:02:38]}  O-O {[%clk 0:02:59]} 10. Bd3 {[%clk 0:02:34]}  Bxd3 {[%clk 0:02:52]} 11. Qxd3 {[%clk 0:02:33]}  Qb6 {[%clk 0:02:53]} 12. Kh1 {[%clk 0:02:32]}  Rfd8 {[%clk 0:02:49]} 13. Nd2 {[%clk 0:02:31]}  Rac8 {[%clk 0:02:49]} 14. Nc4 {[%clk 0:02:28]}  Qa6 {[%clk 0:02:48]} 15. Ne5 {[%clk 0:02:22]}  Qb6 {[%clk 0:02:28]} 16. f4 {[%clk 0:02:19]}  Nd5 {[%clk 0:02:18]} 17. Qh3 {[%clk 0:01:41]}  Bf8 {[%clk 0:02:07]} 18. Ng3 {[%clk 0:01:39]}  g6 {[%clk 0:02:02]} 19. Ne4 {[%clk 0:01:33]}  h6 {[%clk 0:01:44]} 20. Ng4 {[%clk 0:00:37]}  h5 {[%clk 0:01:37]} 21. Ne5 {[%clk 0:00:32]}  Bg7 {[%clk 0:01:27]} 22. Ng5 {[%clk 0:00:28]}  Nxe5 {[%clk 0:01:08]} 23. fxe5 {[%clk 0:00:29]}  Rc7 {[%clk 0:01:08]} 24. g4 {[%clk 0:00:26]}  Qc6 {[%clk 0:00:52]} 25. Kg1 {[%clk 0:00:26]}  f6 {[%clk 0:00:24]} 26. gxh5 {[%clk 0:00:21]}  fxg5 {[%clk 0:00:17]} 27. hxg6 {[%clk 0:00:20]}  Bxe5 {[%clk 0:00:06]} 28. Bxg5 {[%clk 0:00:07]}  Rg7 {[%clk 0:00:04]} 29. Qh5 {[%clk 0:00:04]}  Nf4 {[%clk 0:00:03]} 30. Bxf4 {[%clk 0:00:03]}  Bxf4 {[%clk 0:00:04]} 31. Rxf4 {[%clk 0:00:04]}  e5 {[%clk 0:00:05]} 32. Rg4 {[%clk 0:00:03]}  exd4 {[%clk 0:00:04]} 33. cxd4 {[%clk 0:00:03]}  Qd6 {[%clk 0:00:05]} 34. Rf1 {[%clk 0:00:03]}  Qe6 {[%clk 0:00:05]} 35. h3 {[%clk 0:00:02]}  Rd5 {[%clk 0:00:05]} 36. Qh4 {[%clk 0:00:02]}  Qe3+ {[%clk 0:00:06]} 37. Kh1 {[%clk 0:00:02]}  Qe8 {[%clk 0:00:06]} 38. Qg3 {[%clk 0:00:02]}  Rd8 {[%clk 0:00:05]} 39. Rg1 {[%clk 0:00:02]}  Qc6+ {[%clk 0:00:06]} 40. Qg2 {[%clk 0:00:02]}  Qd6 {[%clk 0:00:06]} 41. Qg3 {[%clk 0:00:02]}  Qd5+ {[%clk 0:00:07]} 42. Qg2 {[%clk 0:00:02]}  Qxd4 {[%clk 0:00:08]} 43. Qg3 {[%clk 0:00:03]}  Qd5+ {[%clk 0:00:08]} 44. Qg2 {[%clk 0:00:03]}  Qe6 {[%clk 0:00:09]} 45. Rh4 {[%clk 0:00:03]}  Rd3 {[%clk 0:00:09]} 46. Rh7 {[%clk 0:00:04]}  Rxh7 {[%clk 0:00:09]} 47. gxh7+ {[%clk 0:00:03]}  Kf7 {[%clk 0:00:10]} 48. Qg7+ {[%clk 0:00:03]}  Ke8 {[%clk 0:00:10]} 49. h8=Q+ {[%clk 0:00:04]}  Qg8 {[%clk 0:00:10]} 50. Qhxg8# {[%clk 0:00:04]} 1-0


[Site "https://www.chess.com"]

[Event "Titled Tuesday Blitz July 11 Early 2023"]
[White "Yeritsyan, Hayk"]
[Black "Wang2007"]
[WhiteFideId "13307320"]
[WhiteElo "2525"]
[BlackElo "2250"]
[Result "0-1"]
[Round "3"]
[TimeControl "180+2"]
[Date "2023.07.11"]
[WhiteClock "0:00:10"]
[BlackClock "0:00:21"]
[Board "147"]

1. d4 {[%clk 0:03:00]}  Nf6 {[%clk 0:02:59]} 2. Nf3 {[%clk 0:03:01]}  g6 {[%clk 0:02:59]} 3. Bf4 {[%clk 0:03:01]}  Bg7 {[%clk 0:02:59]} 4. h3 {[%clk 0:03:01]}  O-O {[%clk 0:02:58]} 5. e3 {[%clk 0:03:02]}  d5 {[%clk 0:02:58]} 6. c3 {[%clk 0:03:02]}  c5 {[%clk 0:02:58]} 7. Be2 {[%clk 0:03:02]}  Nc6 {[%clk 0:02:58]} 8. O-O {[%clk 0:03:03]}  Nd7 {[%clk 0:02:58]} 9. Na3 {[%clk 0:03:02]}  e5 {[%clk 0:02:57]} 10. Bh2 {[%clk 0:03:02]}  a6 {[%clk 0:02:29]} 11. Rc1 {[%clk 0:02:54]}  b5 {[%clk 0:02:18]} 12. Nc2 {[%clk 0:02:52]}  Bb7 {[%clk 0:02:09]} 13. Re1 {[%clk 0:02:47]}  Re8 {[%clk 0:02:08]} 14. Rf1 {[%clk 0:02:47]}  Qb6 {[%clk 0:01:53]} 15. Na3 {[%clk 0:02:33]}  Rad8 {[%clk 0:01:52]} 16. dxe5 {[%clk 0:02:29]}  Ndxe5 {[%clk 0:01:52]} 17. Nxe5 {[%clk 0:02:29]}  Nxe5 {[%clk 0:01:53]} 18. Bxe5 {[%clk 0:02:23]}  Bxe5 {[%clk 0:01:52]} 19. Nc2 {[%clk 0:02:23]}  a5 {[%clk 0:01:04]} 20. Bf3 {[%clk 0:02:23]}  b4 {[%clk 0:01:03]} 21. Qd2 {[%clk 0:02:19]}  d4 {[%clk 0:00:35]} 22. cxd4 {[%clk 0:01:59]}  Bxf3 {[%clk 0:00:34]} 23. gxf3 {[%clk 0:01:59]}  cxd4 {[%clk 0:00:33]} 24. Nxd4 {[%clk 0:01:52]}  Bxd4 {[%clk 0:00:33]} 25. exd4 {[%clk 0:01:53]}  Rxd4 {[%clk 0:00:33]} 26. Qg5 {[%clk 0:01:48]}  Qe6 {[%clk 0:00:30]} 27. Kg2 {[%clk 0:01:41]}  Rd5 {[%clk 0:00:30]} 28. Qg4 {[%clk 0:01:40]}  Qf6 {[%clk 0:00:25]} 29. Rc8 {[%clk 0:01:25]}  Rxc8 {[%clk 0:00:24]} 30. Qxc8+ {[%clk 0:01:25]}  Kg7 {[%clk 0:00:24]} 31. Qb7 {[%clk 0:01:05]}  Rg5+ {[%clk 0:00:23]} 32. Kh1 {[%clk 0:01:04]}  Qf5 {[%clk 0:00:22]} 33. Kh2 {[%clk 0:01:02]}  Rh5 {[%clk 0:00:22]} 34. Kg3 {[%clk 0:00:15]}  Rxh3+ {[%clk 0:00:21]} 35. Kg2 {[%clk 0:00:15]}  Rh4 {[%clk 0:00:20]} 36. Rh1 {[%clk 0:00:14]}  Qg5+ {[%clk 0:00:21]} 37. Kf1 {[%clk 0:00:10]}  Rxh1+ {[%clk 0:00:21]} 0-1


[Site "https://www.chess.com"]

[Event "Titled Tuesday Blitz July 11 Early 2023"]
[White "Kiselev, Pavel"]
[Black "Turzo, Attila"]
[WhiteFideId "4191102"]
[BlackFideId "704954"]
[WhiteElo "2239"]
[BlackElo "2521"]
[Result "0-1"]
[Round "3"]
[TimeControl "180+2"]
[Date "2023.07.11"]
[WhiteClock "0:00:06"]
[BlackClock "0:01:26"]
[Board "148"]

1. Nf3 {[%clk 0:03:00]}  Nf6 {[%clk 0:02:59]} 2. c4 {[%clk 0:03:00]}  g6 {[%clk 0:02:59]} 3. d4 {[%clk 0:03:00]}  Bg7 {[%clk 0:03:00]} 4. Nc3 {[%clk 0:02:59]}  O-O {[%clk 0:02:59]} 5. e4 {[%clk 0:03:00]}  d6 {[%clk 0:03:00]} 6. h3 {[%clk 0:03:00]}  e5 {[%clk 0:02:55]} 7. d5 {[%clk 0:03:00]}  a5 {[%clk 0:02:52]} 8. Bd3 {[%clk 0:03:00]}  Na6 {[%clk 0:02:52]} 9. O-O {[%clk 0:03:00]}  Nc5 {[%clk 0:02:52]} 10. Bc2 {[%clk 0:03:00]}  Nh5 {[%clk 0:02:47]} 11. Kh2 {[%clk 0:02:37]}  Nf4 {[%clk 0:02:45]} 12. Bxf4 {[%clk 0:02:08]}  exf4 {[%clk 0:02:43]} 13. Nd4 {[%clk 0:02:09]}  Be5 {[%clk 0:02:33]} 14. Nf3 {[%clk 0:02:08]}  g5 {[%clk 0:02:27]} 15. Nxe5 {[%clk 0:02:04]}  dxe5 {[%clk 0:02:27]} 16. Qh5 {[%clk 0:02:01]}  Ra6 {[%clk 0:02:20]} 17. Rad1 {[%clk 0:01:56]}  Kg7 {[%clk 0:02:17]} 18. Qe2 {[%clk 0:01:52]}  g4 {[%clk 0:02:07]} 19. g3 {[%clk 0:01:08]}  Rh6 {[%clk 0:01:54]} 20. h4 {[%clk 0:01:08]}  Rxh4+ {[%clk 0:01:54]} 21. gxh4 {[%clk 0:01:09]}  Qxh4+ {[%clk 0:01:55]} 22. Kg1 {[%clk 0:01:09]}  f3 {[%clk 0:01:44]} 23. Qd2 {[%clk 0:00:30]}  h6 {[%clk 0:01:42]} 24. Ne2 {[%clk 0:00:22]}  Qh3 {[%clk 0:01:35]} 25. Nf4 {[%clk 0:00:21]}  exf4 {[%clk 0:01:31]} 26. Qd4+ {[%clk 0:00:06]}  Kg8 {[%clk 0:01:26]} 0-1


[Site "https://www.chess.com"]

[Event "Titled Tuesday Blitz July 11 Early 2023"]
[White "Fonseca Manrique, Enrique"]
[Black "Kev4444444444"]
[WhiteFideId "5114330"]
[WhiteElo "2517"]
[BlackElo "2174"]
[Result "0-1"]
[Round "3"]
[TimeControl "180+2"]
[Date "2023.07.11"]
[WhiteClock "0:00:11"]
[BlackClock "0:00:15"]
[Board "153"]

1. e4 {[%clk 0:03:00]}  c5 {[%clk 0:02:57]} 2. Nc3 {[%clk 0:03:00]}  Nc6 {[%clk 0:02:57]} 3. f4 {[%clk 0:03:01]}  g6 {[%clk 0:02:58]} 4. Nf3 {[%clk 0:03:01]}  Bg7 {[%clk 0:02:58]} 5. Bb5 {[%clk 0:03:02]}  Nd4 {[%clk 0:02:58]} 6. Ba4 {[%clk 0:03:02]}  e6 {[%clk 0:02:52]} 7. O-O {[%clk 0:03:02]}  Ne7 {[%clk 0:02:52]} 8. d3 {[%clk 0:03:03]}  O-O {[%clk 0:02:52]} 9. Bb3 {[%clk 0:03:00]}  a6 {[%clk 0:02:45]} 10. Nxd4 {[%clk 0:03:00]}  cxd4 {[%clk 0:02:45]} 11. Ne2 {[%clk 0:03:01]}  b5 {[%clk 0:02:42]} 12. Qe1 {[%clk 0:03:00]}  d6 {[%clk 0:02:40]} 13. Qf2 {[%clk 0:03:00]}  Nc6 {[%clk 0:02:39]} 14. f5 {[%clk 0:02:42]}  exf5 {[%clk 0:02:28]} 15. Bd5 {[%clk 0:02:41]}  Qb6 {[%clk 0:02:20]} 16. Ng3 {[%clk 0:02:40]}  fxe4 {[%clk 0:02:08]} 17. Nxe4 {[%clk 0:02:28]}  Be6 {[%clk 0:02:05]} 18. Nf6+ {[%clk 0:02:27]}  Bxf6 {[%clk 0:01:35]} 19. Qxf6 {[%clk 0:02:27]}  Qd8 {[%clk 0:01:36]} 20. Bxc6 {[%clk 0:02:19]}  Rc8 {[%clk 0:01:29]} 21. Qf3 {[%clk 0:02:05]}  d5 {[%clk 0:01:18]} 22. Bb7 {[%clk 0:01:55]}  Rb8 {[%clk 0:01:18]} 23. Bxa6 {[%clk 0:01:54]}  Rb6 {[%clk 0:01:18]} 24. Bh6 {[%clk 0:01:49]}  Re8 {[%clk 0:01:18]} 25. Rae1 {[%clk 0:01:36]}  Qe7 {[%clk 0:00:50]} 26. Qf2 {[%clk 0:01:20]}  Rxa6 {[%clk 0:00:42]} 27. Qxd4 {[%clk 0:01:20]}  Qa7 {[%clk 0:00:43]} 28. Qxa7 {[%clk 0:01:16]}  Rxa7 {[%clk 0:00:43]} 29. a3 {[%clk 0:01:16]}  Rc8 {[%clk 0:00:44]} 30. c3 {[%clk 0:01:16]}  d4 {[%clk 0:00:43]} 31. cxd4 {[%clk 0:01:13]}  Rd7 {[%clk 0:00:37]} 32. Re4 {[%clk 0:01:07]}  Bf5 {[%clk 0:00:36]} 33. Ref4 {[%clk 0:00:56]}  Bxd3 {[%clk 0:00:35]} 34. Re1 {[%clk 0:00:56]}  f5 {[%clk 0:00:29]} 35. Bg5 {[%clk 0:00:42]}  Be4 {[%clk 0:00:29]} 36. Bf6 {[%clk 0:00:41]}  Rc2 {[%clk 0:00:29]} 37. Rf2 {[%clk 0:00:41]}  Rc6 {[%clk 0:00:28]} 38. Be5 {[%clk 0:00:41]}  Rd5 {[%clk 0:00:28]} 39. h3 {[%clk 0:00:37]}  Kf7 {[%clk 0:00:28]} 40. Kh2 {[%clk 0:00:37]}  Ke6 {[%clk 0:00:28]} 41. g4 {[%clk 0:00:36]}  Rd8 {[%clk 0:00:27]} 42. gxf5+ {[%clk 0:00:34]}  gxf5 {[%clk 0:00:28]} 43. Kg3 {[%clk 0:00:33]}  Rdc8 {[%clk 0:00:27]} 44. Kf4 {[%clk 0:00:31]}  Rc2 {[%clk 0:00:27]} 45. Ref1 {[%clk 0:00:29]}  Rxf2+ {[%clk 0:00:25]} 46. Rxf2 {[%clk 0:00:29]}  Rc1 {[%clk 0:00:25]} 47. Rd2 {[%clk 0:00:27]}  Rh1 {[%clk 0:00:25]} 48. Kg3 {[%clk 0:00:26]}  Kd5 {[%clk 0:00:25]} 49. h4 {[%clk 0:00:25]}  Rg1+ {[%clk 0:00:25]} 50. Kf2 {[%clk 0:00:20]}  Rg4 {[%clk 0:00:24]} 51. Bf6 {[%clk 0:00:19]}  f4 {[%clk 0:00:22]} 52. Re2 {[%clk 0:00:17]}  Rg2+ {[%clk 0:00:22]} 53. Kf1 {[%clk 0:00:17]}  Rg3 {[%clk 0:00:20]} 54. Rf2 {[%clk 0:00:16]}  Bd3+ {[%clk 0:00:19]} 55. Ke1 {[%clk 0:00:16]}  f3 {[%clk 0:00:17]} 56. Kd2 {[%clk 0:00:15]}  Be2 {[%clk 0:00:17]} 57. Ke3 {[%clk 0:00:16]}  Rg4 {[%clk 0:00:17]} 58. Rh2 {[%clk 0:00:14]}  Re4+ {[%clk 0:00:17]} 59. Kd2 {[%clk 0:00:15]}  Rg4 {[%clk 0:00:17]} 60. Be5 {[%clk 0:00:15]}  Ke4 {[%clk 0:00:15]} 61. b3 {[%clk 0:00:14]}  Rg2 {[%clk 0:00:15]} 62. Rh1 {[%clk 0:00:14]}  Bd3+ {[%clk 0:00:14]} 63. Kc3 {[%clk 0:00:13]}  f2 {[%clk 0:00:13]} 64. a4 {[%clk 0:00:11]}  f1=Q {[%clk 0:00:13]} 65. Rxf1 {[%clk 0:00:11]}  Bxf1 {[%clk 0:00:14]} 66. a5 {[%clk 0:00:12]}  Rg6 {[%clk 0:00:13]} 67. Kb4 {[%clk 0:00:12]}  Kd5 {[%clk 0:00:14]} 68. Kc3 {[%clk 0:00:12]}  Ra6 {[%clk 0:00:14]} 69. b4 {[%clk 0:00:12]}  Be2 {[%clk 0:00:14]} 70. Kd2 {[%clk 0:00:12]}  Bf3 {[%clk 0:00:14]} 71. Kc3 {[%clk 0:00:13]}  Rc6+ {[%clk 0:00:15]} 72. Kd2 {[%clk 0:00:13]}  Kc4 {[%clk 0:00:15]} 73. Ke3 {[%clk 0:00:12]}  Bd5 {[%clk 0:00:15]} 74. Kf4 {[%clk 0:00:11]}  Kxb4 {[%clk 0:00:16]} 75. Bf6 {[%clk 0:00:11]}  Kxa5 {[%clk 0:00:16]} 76. Ke5 {[%clk 0:00:12]}  b4 {[%clk 0:00:16]} 77. Kxd5 {[%clk 0:00:12]}  Rxf6 {[%clk 0:00:16]} 78. Kc5 {[%clk 0:00:11]}  b3 {[%clk 0:00:15]} 0-1


[Site "https://www.chess.com"]

[Event "Titled Tuesday Blitz July 11 Early 2023"]
[White "Baruch, Liam"]
[Black "Brunner, Nicolas"]
[WhiteFideId "14322064"]
[BlackFideId "620246"]
[WhiteElo "2165"]
[BlackElo "2517"]
[Result "1-0"]
[Round "3"]
[TimeControl "180+2"]
[Date "2023.07.11"]
[WhiteClock "0:00:06"]
[BlackClock "0:00:00"]
[Board "154"]

1. e4 {[%clk 0:03:00]}  e5 {[%clk 0:02:59]} 2. Nf3 {[%clk 0:03:00]}  Nf6 {[%clk 0:03:00]} 3. Nxe5 {[%clk 0:02:55]}  d6 {[%clk 0:03:00]} 4. Nf3 {[%clk 0:02:55]}  Nxe4 {[%clk 0:03:00]} 5. d4 {[%clk 0:02:56]}  d5 {[%clk 0:03:00]} 6. Bd3 {[%clk 0:02:56]}  Be7 {[%clk 0:03:00]} 7. c4 {[%clk 0:02:56]}  Bf5 {[%clk 0:02:54]} 8. O-O {[%clk 0:02:53]}  dxc4 {[%clk 0:02:46]} 9. Bxc4 {[%clk 0:02:52]}  O-O {[%clk 0:02:46]} 10. Nc3 {[%clk 0:02:50]}  Nd6 {[%clk 0:02:30]} 11. Bb3 {[%clk 0:02:43]}  c6 {[%clk 0:02:29]} 12. Bf4 {[%clk 0:02:38]}  Nd7 {[%clk 0:02:29]} 13. Re1 {[%clk 0:02:34]}  Nb6 {[%clk 0:02:14]} 14. Qe2 {[%clk 0:02:26]}  Bf6 {[%clk 0:02:13]} 15. Ne5 {[%clk 0:02:23]}  a5 {[%clk 0:02:07]} 16. a4 {[%clk 0:02:16]}  Re8 {[%clk 0:01:58]} 17. Rad1 {[%clk 0:02:14]}  Re7 {[%clk 0:01:46]} 18. Qh5 {[%clk 0:02:01]}  g6 {[%clk 0:01:39]} 19. Qf3 {[%clk 0:01:53]}  Kg7 {[%clk 0:01:17]} 20. g4 {[%clk 0:01:48]}  Be6 {[%clk 0:01:13]} 21. g5 {[%clk 0:01:35]}  Bxb3 {[%clk 0:00:56]} 22. gxf6+ {[%clk 0:01:33]}  Kxf6 {[%clk 0:00:57]} 23. Ng4+ {[%clk 0:01:06]}  Kg7 {[%clk 0:00:51]} 24. Be5+ {[%clk 0:00:57]}  Rxe5 {[%clk 0:00:46]} 25. dxe5 {[%clk 0:00:42]}  Bxd1 {[%clk 0:00:46]} 26. Rxd1 {[%clk 0:00:42]}  Qg5 {[%clk 0:00:39]} 27. h4 {[%clk 0:00:34]}  Qf5 {[%clk 0:00:39]} 28. Qg2 {[%clk 0:00:22]}  Ndc4 {[%clk 0:00:38]} 29. Re1 {[%clk 0:00:13]}  Re8 {[%clk 0:00:36]} 30. Qg3 {[%clk 0:00:12]}  Nd7 {[%clk 0:00:28]} 31. f4 {[%clk 0:00:05]}  Nxb2 {[%clk 0:00:23]} 32. Ne4 {[%clk 0:00:04]}  Nxa4 {[%clk 0:00:18]} 33. Nd6 {[%clk 0:00:04]}  Qe6 {[%clk 0:00:15]} 34. Nxe8+ {[%clk 0:00:05]}  Qxe8 {[%clk 0:00:16]} 35. Nf6 {[%clk 0:00:05]}  Qe6 {[%clk 0:00:13]} 36. Nxd7 {[%clk 0:00:05]}  Qxd7 {[%clk 0:00:13]} 37. Qe3 {[%clk 0:00:05]}  b5 {[%clk 0:00:12]} 38. Qe2 {[%clk 0:00:04]}  Nc3 {[%clk 0:00:10]} 39. Qe3 {[%clk 0:00:03]}  Nd5 {[%clk 0:00:10]} 40. Qe4 {[%clk 0:00:03]}  Qg4+ {[%clk 0:00:10]} 41. Kf1 {[%clk 0:00:03]}  Nxf4 {[%clk 0:00:10]} 42. e6 {[%clk 0:00:02]}  Qh3+ {[%clk 0:00:09]} 43. Kf2 {[%clk 0:00:01]}  Nxe6 {[%clk 0:00:08]} 44. Qe5+ {[%clk 0:00:01]}  Kg8 {[%clk 0:00:08]} 45. Qb8+ {[%clk 0:00:02]}  Kg7 {[%clk 0:00:08]} 46. Qe5+ {[%clk 0:00:03]}  Kh6 {[%clk 0:00:07]} 47. Qb8 {[%clk 0:00:01]}  Qxh4+ {[%clk 0:00:07]} 48. Ke2 {[%clk 0:00:01]}  Qc4+ {[%clk 0:00:06]} 49. Kd2 {[%clk 0:00:01]}  Qd4+ {[%clk 0:00:06]} 50. Ke2 {[%clk 0:00:02]}  Kg7 {[%clk 0:00:06]} 51. Rf1 {[%clk 0:00:02]}  Nf4+ {[%clk 0:00:05]} 52. Kf3 {[%clk 0:00:02]}  Nd5 {[%clk 0:00:05]} 53. Kg3 {[%clk 0:00:02]}  Qd3+ {[%clk 0:00:05]} 54. Kg2 {[%clk 0:00:03]}  a4 {[%clk 0:00:05]} 55. Rf3 {[%clk 0:00:03]}  Qe2+ {[%clk 0:00:05]} 56. Rf2 {[%clk 0:00:03]}  Qe4+ {[%clk 0:00:05]} 57. Kg1 {[%clk 0:00:03]}  Nf6 {[%clk 0:00:04]} 58. Qd8 {[%clk 0:00:02]}  Qg4+ {[%clk 0:00:04]} 59. Kf1 {[%clk 0:00:02]}  Ne4 {[%clk 0:00:04]} 60. Qd4+ {[%clk 0:00:02]}  f6 {[%clk 0:00:03]} 61. Qd7+ {[%clk 0:00:02]}  Kh6 {[%clk 0:00:03]} 62. Qxg4 {[%clk 0:00:02]}  Nxf2 {[%clk 0:00:03]} 63. Kxf2 {[%clk 0:00:02]}  a3 {[%clk 0:00:04]} 64. Qb4 {[%clk 0:00:03]}  a2 {[%clk 0:00:03]} 65. Qb2 {[%clk 0:00:03]}  Kh5 {[%clk 0:00:03]} 66. Qxa2 {[%clk 0:00:04]}  f5 {[%clk 0:00:04]} 67. Qc2 {[%clk 0:00:05]}  Kg5 {[%clk 0:00:04]} 68. Qxc6 {[%clk 0:00:05]}  h5 {[%clk 0:00:04]} 69. Qxb5 {[%clk 0:00:06]}  h4 {[%clk 0:00:00]} 70. Kg2 {[%clk 0:00:06]} 1-0


[Site "https://www.chess.com"]

[Event "Titled Tuesday Blitz July 11 Early 2023"]
[White "only_strong_moves"]
[Black "Lisjak, Zlatko"]
[BlackFideId "14502186"]
[WhiteElo "2516"]
[BlackElo "2163"]
[Result "1-0"]
[Round "3"]
[TimeControl "180+2"]
[Date "2023.07.11"]
[WhiteClock "0:00:53"]
[BlackClock "0:00:44"]
[Board "155"]

1. d4 {[%clk 0:03:00]}  d6 {[%clk 0:02:59]} 2. e4 {[%clk 0:03:00]}  Nf6 {[%clk 0:02:58]} 3. Nc3 {[%clk 0:03:01]}  c6 {[%clk 0:02:58]} 4. f4 {[%clk 0:03:01]}  Qa5 {[%clk 0:02:57]} 5. Qd3 {[%clk 0:02:58]}  Na6 {[%clk 0:02:53]} 6. e5 {[%clk 0:02:26]}  Nb4 {[%clk 0:02:35]} 7. Qd2 {[%clk 0:02:08]}  dxe5 {[%clk 0:02:19]} 8. fxe5 {[%clk 0:02:01]}  Bf5 {[%clk 0:02:13]} 9. Bd3 {[%clk 0:01:56]}  Bxd3 {[%clk 0:02:04]} 10. cxd3 {[%clk 0:01:57]}  Nd7 {[%clk 0:01:47]} 11. Nf3 {[%clk 0:01:53]}  O-O-O {[%clk 0:01:45]} 12. a3 {[%clk 0:01:47]}  Nd5 {[%clk 0:01:44]} 13. O-O {[%clk 0:01:36]}  h6 {[%clk 0:01:37]} 14. b4 {[%clk 0:01:29]}  Qc7 {[%clk 0:01:14]} 15. Nxd5 {[%clk 0:01:26]}  cxd5 {[%clk 0:01:09]} 16. b5 {[%clk 0:01:25]}  Kb8 {[%clk 0:01:08]} 17. a4 {[%clk 0:01:24]}  Rc8 {[%clk 0:01:04]} 18. Ba3 {[%clk 0:01:24]}  e6 {[%clk 0:01:03]} 19. Rfc1 {[%clk 0:01:15]}  Qb6 {[%clk 0:01:01]} 20. Rxc8+ {[%clk 0:01:14]}  Kxc8 {[%clk 0:01:01]} 21. Bxf8 {[%clk 0:01:02]}  Rxf8 {[%clk 0:00:59]} 22. Rc1+ {[%clk 0:00:55]}  Kb8 {[%clk 0:00:58]} 23. Qc3 {[%clk 0:00:56]}  f6 {[%clk 0:00:51]} 24. exf6 {[%clk 0:00:55]}  Rxf6 {[%clk 0:00:44]} 25. Qc8# {[%clk 0:00:53]} 1-0


[Site "https://www.chess.com"]

[Event "Titled Tuesday Blitz July 11 Early 2023"]
[White "WindWhistler11"]
[Black "Wesolowska, Hanna"]
[BlackFideId "1104683"]
[WhiteElo "2515"]
[BlackElo "2163"]
[Result "1-0"]
[Round "3"]
[TimeControl "180+2"]
[Date "2023.07.11"]
[WhiteClock "0:01:30"]
[BlackClock "0:00:00"]
[Board "156"]

1. Nf3 {[%clk 0:02:57]}  Nf6 {[%clk 0:01:13]} 2. g3 {[%clk 0:02:54]}  g6 {[%clk 0:01:13]} 3. Bg2 {[%clk 0:02:54]}  Bg7 {[%clk 0:01:14]} 4. O-O {[%clk 0:02:54]}  O-O {[%clk 0:01:15]} 5. b4 {[%clk 0:02:53]}  a5 {[%clk 0:01:14]} 6. b5 {[%clk 0:02:54]}  c5 {[%clk 0:01:13]} 7. a4 {[%clk 0:02:49]}  d5 {[%clk 0:01:12]} 8. Bb2 {[%clk 0:02:39]}  b6 {[%clk 0:01:12]} 9. e3 {[%clk 0:02:36]}  Bb7 {[%clk 0:01:13]} 10. d3 {[%clk 0:02:35]}  Nbd7 {[%clk 0:01:13]} 11. Nbd2 {[%clk 0:02:35]}  Re8 {[%clk 0:01:13]} 12. c4 {[%clk 0:02:34]}  e5 {[%clk 0:01:13]} 13. cxd5 {[%clk 0:02:32]}  Nxd5 {[%clk 0:01:14]} 14. Nc4 {[%clk 0:02:30]}  Nb4 {[%clk 0:01:13]} 15. Nd6 {[%clk 0:02:25]}  Qc7 {[%clk 0:01:09]} 16. Nxe8 {[%clk 0:02:19]}  Rxe8 {[%clk 0:01:10]} 17. Qb3 {[%clk 0:02:08]}  Bd5 {[%clk 0:01:07]} 18. Qc3 {[%clk 0:02:08]}  Qb7 {[%clk 0:01:03]} 19. e4 {[%clk 0:02:05]}  Be6 {[%clk 0:00:58]} 20. Nd2 {[%clk 0:02:06]}  Rd8 {[%clk 0:00:56]} 21. Nc4 {[%clk 0:02:06]}  Qc7 {[%clk 0:00:51]} 22. Rad1 {[%clk 0:02:03]}  Nf8 {[%clk 0:00:24]} 23. f4 {[%clk 0:02:01]}  Na2 {[%clk 0:00:22]} 24. Qa3 {[%clk 0:01:57]}  Nb4 {[%clk 0:00:18]} 25. Bxe5 {[%clk 0:01:54]}  Qd7 {[%clk 0:00:14]} 26. Bxg7 {[%clk 0:01:50]}  Kxg7 {[%clk 0:00:15]} 27. Qc3+ {[%clk 0:01:49]}  Qd4+ {[%clk 0:00:11]} 28. Qxd4+ {[%clk 0:01:49]}  cxd4 {[%clk 0:00:12]} 29. Nxb6 {[%clk 0:01:48]}  Bb3 {[%clk 0:00:08]} 30. Rd2 {[%clk 0:01:43]}  Ne6 {[%clk 0:00:06]} 31. Nc4 {[%clk 0:01:31]}  Bxa4 {[%clk 0:00:03]} 32. f5 {[%clk 0:01:31]}  Nc5 {[%clk 0:00:03]} 33. f6+ {[%clk 0:01:32]}  Kh6 {[%clk 0:00:00]} 34. Ne5 {[%clk 0:01:30]} 1-0


[Site "https://www.chess.com"]